bitfinex/quotes_ETHUSD_20250524
["timestamp","ask_amount","ask_price","bid_price","bid_amount"]
[1748056038368,4.69520996,2545.3,2545.2,34.945]
[1748056038871,5.0623858,2545.3,2545.2,34.945]
[1748056039535,5.96148994,2545.3,2545.2,34.945]
[1748056039733,5.96148994,2545.3,2545.2,23.176]
[1748056039932,5.96148994,2545.3,2545.2,34.945]
[1748056041064,5.0623858,2545.3,2545.2,34.945]
[1748056041264,5.0623858,2545.3,2545.2,8.0]
[1748056041425,5.0623858,2545.3,2545.2,34.946]
[1748056043383,5.0623858,2545.3,2545.2,8.0]
[1748056043539,5.0623858,2545.3,2545.2,34.947]
[1748056046475,5.0623858,2545.3,2545.2,23.177]
[1748056046680,5.96148994,2545.3,2545.2,34.947]
[1748056047787,3.92896432,2545.2,2545.1,16.946]
[1748056047982,5.24356432,2545.2,2545.1,32.124]
[1748056048140,5.24356432,2545.2,2545.1,43.894]
[1748056048341,6.68028091,2545.2,2545.1,43.894]
[1748056048883,7.04731275,2545.2,2545.1,43.894]
[1748056051474,7.04731275,2545.2,2545.1,32.124]
[1748056051797,7.04731275,2545.2,2545.1,43.895]
[1748056053054,7.04731275,2545.2,2545.1,32.124]
[1748056053351,7.04731275,2545.2,2545.1,43.895]
[1748056054599,17.23731275,2545.2,2545.1,32.126]
[1748056054891,17.23731275,2545.2,2544.8,28.723]
[1748056054892,4.47942748,2544.9,2544.8,28.723]
[1748056055065,5.27489965,2544.4,2544.3,0.61377984]
[1748056055267,5.27489965,2544.4,2544.3,44.51677984]
[1748056055631,5.64193149,2544.4,2544.3,44.51677984]
[1748056057298,5.64193149,2544.4,2544.3,44.51777984]
[1748056057493,6.83146238,2544.4,2544.3,16.951]
[1748056057699,7.90761551,2544.4,2544.3,43.906]
[1748056058698,6.71808462,2544.4,2544.3,43.906]
[1748056060065,7.90761551,2544.4,2544.3,43.906]
[1748056062005,7.90761551,2544.4,2544.3,16.951]
[1748056062197,7.90761551,2544.4,2544.3,32.135]
[1748056068593,6.71808462,2544.4,2544.3,32.135]
[1748056075741,4.84723149,2544.4,2544.3,32.135]
[1748056075943,4.29723149,2544.4,2544.3,32.9003]
[1748056076845,4.29723149,2544.4,2544.3,32.135]
[1748056077403,4.84723149,2544.4,2544.3,32.135]
[1748056077603,5.65893149,2544.4,2544.3,16.951]
[1748056077806,6.53666153,2544.4,2544.3,43.782]
[1748056078009,5.65893149,2544.4,2544.3,43.782]
[1748056084752,5.65893149,2544.4,2544.3,32.006]
[1748056084953,5.65893149,2544.4,2544.3,43.782]
[1748056085671,5.63289329,2544.4,2544.3,43.782]
[1748056086053,4.27119329,2544.4,2544.3,43.782]
[1748056087345,4.27119329,2544.4,2544.3,44.5828]
[1748056087561,4.27119329,2544.4,2544.3,52.5828]
[1748056087764,0.36703184,2544.4,2544.3,52.5828]
[1748056088063,4.29723149,2544.4,2544.3,52.5828]
[1748056088837,3.93019965,2544.4,2544.3,52.5828]
[1748056089266,3.92993343,2544.6,2544.4,8.8008]
[1748056089563,3.92993693,2544.6,2544.4,8.0]
[1748056089741,3.92993693,2544.6,2544.5,0.8008]
[1748056090863,3.92988165,2544.7,2544.5,0.8008]
[1748056091169,3.92963532,2544.8,2544.5,0.8008]
[1748056091664,3.92979642,2544.7,2544.5,0.8008]
[1748056091845,3.92964716,2544.8,2544.5,0.8008]
[1748056092171,3.92788404,2545.9,2544.5,0.8008]
[1748056092331,3.92923355,2545.1,2544.7,0.8008]
[1748056092529,4.69025086,2546.4,2545.0,0.8008]
[1748056092734,4.69025086,2546.4,2545.2,0.8008]
[1748056092735,3.92889298,2545.3,2545.2,0.8008]
[1748056092935,3.92889298,2545.3,2545.2,40.8068]
[1748056095374,3.92854941,2545.5,2545.3,8.0]
[1748056095546,3.92854941,2545.5,2545.4,20.5748]
[1748056102178,3.92854941,2545.5,2545.4,8.8008]
[1748056102383,3.92854941,2545.5,2545.4,20.5708]
[1748056103498,3.92880996,2545.3,2545.2,16.954]
[1748056103793,3.92880996,2545.3,2545.2,43.713]
[1748056103955,5.10741391,2545.3,2545.2,51.713]
[1748056104151,5.10741391,2545.3,2545.2,43.713]
[1748056104964,5.88121391,2545.3,2545.2,31.943]
[1748056105163,6.43121391,2545.3,2545.2,43.713]
[1748056108108,6.43121391,2545.3,2545.2,16.954]
[1748056108285,6.43121391,2545.3,2545.2,43.715]
[1748056109990,6.79607307,2545.3,2545.2,43.715]
[1748056115526,4.29366912,2545.3,2545.2,43.715]
[1748056116616,4.84366912,2545.3,2545.2,43.715]
[1748056117806,5.63406912,2545.3,2545.2,43.715]
[1748056118691,5.63406912,2545.3,2545.2,16.954]
[1748056118891,5.63406912,2545.3,2545.2,43.717]
[1748056119093,6.98319898,2545.3,2545.2,43.717]
[1748056119533,4.29366912,2545.3,2545.2,43.717]
[1748056120316,4.29366912,2545.3,2545.2,51.717]
[1748056121744,3.92880996,2545.3,2545.2,51.717]
[1748056124510,5.28210996,2545.3,2545.2,43.717]
[1748056125449,5.64817203,2545.3,2545.2,43.717]
[1748056126326,6.99871218,2545.3,2545.2,43.717]
[1748056126932,6.99871218,2545.3,2545.2,43.716]
[1748056133767,4.29487203,2545.3,2545.2,43.716]
[1748056133942,4.84487203,2545.3,2545.2,43.716]
[1748056138668,4.84487203,2545.3,2545.2,31.945]
[1748056138886,4.84487203,2545.3,2545.2,43.717]
[1748056139440,4.84290759,2545.3,2545.2,43.717]
[1748056139640,6.1129213,2545.3,2545.2,43.717]
[1748056140174,4.29290759,2545.3,2545.2,43.717]
[1748056143491,4.29430912,2545.3,2545.2,43.717]
[1748056143897,4.29430912,2545.3,2545.2,16.954]
[1748056144080,4.29430912,2545.3,2545.2,43.671]
[1748056145902,4.84430912,2545.3,2545.2,43.671]
[1748056146052,6.11446298,2545.3,2545.2,43.671]
[1748056146253,5.56446298,2545.3,2545.2,43.671]
[1748056146489,4.29430912,2545.3,2545.2,43.671]
[1748056147576,4.84430912,2545.3,2545.2,43.671]
[1748056147781,5.61220912,2545.3,2545.2,43.671]
[1748056148189,5.61220912,2545.3,2545.2,31.899]
[1748056148396,5.61220912,2545.3,2545.2,43.671]
[1748056149203,6.95915298,2545.3,2545.2,43.671]
[1748056151297,6.19125298,2545.3,2545.2,43.671]
[1748056153697,6.19125298,2545.3,2545.2,16.954]
[1748056153898,6.19125298,2545.3,2545.2,43.671]
[1748056159308,6.19125298,2545.3,2545.2,16.954]
[1748056159521,6.19125298,2545.3,2545.2,43.544]
[1748056160073,7.02355298,2545.3,2545.2,31.772]
[1748056160264,7.02355298,2545.3,2545.2,43.544]
[1748056160810,7.02355298,2545.3,2545.2,16.954]
[1748056161103,7.02355298,2545.3,2545.2,43.544]
[1748056162416,3.93004519,2544.5,2544.4,0.61383062]
[1748056162567,4.48004519,2544.5,2544.4,17.56583062]
[1748056162772,4.84750879,2544.5,2544.4,44.15583062]
[1748056162972,4.29750879,2544.5,2544.4,44.15583062]
[1748056163913,4.84750879,2544.5,2544.4,44.15583062]
[1748056165709,5.80848147,2544.5,2544.4,17.56583062]
[1748056166009,4.84750879,2544.5,2544.4,44.15783062]
[1748056169268,4.84750879,2544.5,2544.4,17.56583062]
[1748056169474,4.84750879,2544.5,2544.4,44.15983062]
[1748056170488,4.84750879,2544.5,2544.4,17.56583062]
[1748056170685,5.61630879,2544.5,2544.4,43.547]
[1748056170942,7.70888456,2544.5,2544.4,43.547]
[1748056171273,7.70888456,2544.5,2544.4,16.952]
[1748056171479,7.70888456,2544.5,2544.4,43.547]
[1748056173940,7.15888456,2544.5,2544.4,43.547]
[1748056174099,4.29750879,2544.5,2544.4,43.547]
[1748056174934,4.84750879,2544.5,2544.4,43.547]
[1748056175130,4.29750879,2544.5,2544.4,43.547]
[1748056178137,4.29750879,2544.5,2544.4,44.3741]
[1748056179842,3.93004519,2544.5,2544.4,44.3741]
[1748056181907,3.93004519,2544.5,2544.4,52.3741]
[1748056182120,3.92996984,2544.6,2544.5,0.792]
[1748056183061,3.92967758,2544.8,2544.6,0.792]
[1748056183266,3.92967758,2544.8,2544.7,12.567]
[1748056186042,3.92967758,2544.8,2544.7,0.792]
[1748056186244,3.92967758,2544.8,2544.7,27.387]
[1748056188149,3.92934421,2545.0,2544.8,0.8108]
[1748056188351,3.92942748,2544.9,2544.8,8.0]
[1748056188537,3.92942748,2544.9,2544.8,8.8108]
[1748056191966,3.92936543,2545.0,2544.9,0.7638]
[1748056193251,3.92936543,2545.0,2544.9,25.7168]
[1748056195565,3.92918903,2545.1,2544.9,24.953]
[1748056195755,3.92918903,2545.1,2545.0,0.8217]
[1748056200946,0.8268,2545.9,2545.0,8.8217]
[1748056201147,3.92813877,2545.8,2545.2,1.57158573]
[1748056201451,3.9281954,2545.7,2545.5,0.8315]
[1748056201883,3.92821949,2545.7,2545.5,0.87078027]
[1748056202185,3.92811185,2545.8,2545.5,0.87078027]
[1748056202348,3.92793042,2545.9,2545.5,0.8315]
[1748056202887,1.18953089,2546.3,2545.4,1.37845261]
[1748056203042,3.92850127,2545.5,2545.4,0.8315]
[1748056203243,4.72172125,2546.2,2545.5,8.0]
[1748056203244,3.92830042,2545.7,2545.5,8.0]
[1748056203444,3.92834695,2545.6,2545.5,8.0]
[1748056204191,3.92825738,2545.7,2545.5,8.0]
[1748056204683,3.92834695,2545.6,2545.5,8.0]
[1748056208271,0.7944,2546.5,2545.6,0.7698]
[1748056208471,3.9279821,2545.9,2545.6,0.7698]
[1748056209589,3.92764514,2546.1,2545.6,1.57133487]
[1748056209891,3.92764514,2546.1,2545.7,0.7698]
[1748056211492,3.92774605,2546.0,2545.7,0.7698]
[1748056211790,0.7944,2546.7,2545.9,0.7698]
[1748056211993,3.92759724,2546.1,2546.0,51.529]
[1748056212164,0.7944,2546.7,2546.1,8.0]
[1748056212491,3.92728439,2546.3,2546.2,0.7698]
[1748056213466,3.92728439,2546.3,2546.2,35.3488]
[1748056217602,3.92718628,2546.4,2546.3,8.0]
[1748056218896,3.92742125,2546.2,2546.1,8.0]
[1748056219096,3.92742125,2546.2,2546.1,34.575]
[1748056219459,3.92742125,2546.2,2546.1,8.0]
[1748056219659,3.92742125,2546.2,2546.0,16.947]
[1748056219660,3.9275755,2546.1,2546.0,16.947]
[1748056219901,3.9275755,2546.1,2546.0,51.522]
[1748056220100,3.9275755,2546.1,2546.0,24.947]
[1748056220299,3.9275755,2546.1,2546.0,51.522]
[1748056221905,3.9275755,2546.1,2546.0,24.947]
[1748056222084,3.9275755,2546.1,2546.0,51.603]
[1748056222288,5.89340188,2546.1,2546.0,24.947]
[1748056222596,5.89340188,2546.1,2546.0,51.603]
[1748056223097,4.7151755,2546.1,2546.0,51.603]
[1748056226335,3.9275755,2546.1,2546.0,51.603]
[1748056227293,0.7515,2546.5,2546.1,8.0]
[1748056227594,3.927089,2546.5,2546.2,0.03927252]
[1748056227908,3.927089,2546.5,2546.1,8.0]
[1748056228093,3.9271506,2546.4,2546.2,0.8137]
[1748056229239,3.92700192,2546.5,2546.2,0.8137]
[1748056229534,3.92690473,2546.6,2546.2,0.8137]
[1748056229887,3.92696117,2546.5,2546.2,0.8137]
[1748056230518,3.97639493,2546.9,2546.2,0.8137]
[1748056231061,3.92703866,2546.5,2546.2,0.8137]
[1748056231537,3.92713543,2546.4,2546.2,0.8137]
[1748056232136,3.92703863,2546.5,2546.2,0.8137]
[1748056234535,3.9267092,2546.7,2546.2,0.8137]
[1748056234536,3.92689602,2546.6,2546.2,0.8137]
[1748056234702,3.92698336,2546.5,2546.2,0.8137]
[1748056236235,3.92720594,2546.4,2546.2,0.8137]
[1748056236441,3.92651189,2546.8,2546.2,0.8137]
[1748056236442,0.05,2546.9,2546.2,0.8137]
[1748056236735,3.97635135,2546.9,2546.2,0.8137]
[1748056236914,3.92706251,2546.5,2546.2,0.8137]
[1748056238741,3.92712369,2546.4,2546.2,0.8137]
[1748056238895,3.92726701,2546.3,2546.2,0.8137]
[1748056239095,3.9275755,2546.1,2546.0,17.7214]
[1748056239302,3.9275755,2546.1,2546.0,44.3734]
[1748056239536,3.9275755,2546.1,2546.0,17.7214]
[1748056239836,3.9275755,2546.1,2546.0,52.3734]
[1748056240001,3.9275755,2546.1,2546.0,40.6094]
[1748056240202,3.9275755,2546.1,2546.0,52.3734]
[1748056240398,3.9275755,2546.1,2546.0,24.947]
[1748056240604,3.9275755,2546.1,2546.0,43.599]
[1748056240804,3.9275755,2546.1,2546.0,51.599]
[1748056243751,3.9275755,2546.1,2546.0,51.6]
[1748056243906,4.71307518,2546.1,2546.0,51.6]
[1748056245337,4.71307518,2546.1,2546.0,24.947]
[1748056245509,4.71307518,2546.1,2546.0,51.6]
[1748056247242,4.71307518,2546.1,2546.0,24.947]
[1748056247447,4.71307518,2546.1,2546.0,51.601]
[1748056247651,3.9275755,2546.1,2546.0,51.601]
[1748056254753,3.92742125,2546.2,2546.1,8.0]
[1748056256971,3.92742125,2546.2,2546.1,34.583]
[1748056260558,3.92742125,2546.2,2546.1,8.0]
[1748056261268,4.69602125,2546.2,2546.1,34.583]
[1748056261426,5.55835268,2546.2,2546.1,34.583]
[1748056262624,5.92485376,2546.2,2546.1,34.583]
[1748056264854,5.92485376,2546.2,2546.1,8.0]
[1748056265057,5.92485376,2546.2,2546.1,34.583]
[1748056265262,5.92485376,2546.2,2546.1,22.817]
[1748056265461,5.92485376,2546.2,2546.1,34.583]
[1748056268246,5.92485376,2546.2,2546.1,22.817]
[1748056268450,5.92485376,2546.2,2546.1,8.0]
[1748056268758,3.9275755,2546.1,2546.0,16.947]
[1748056268959,6.22204882,2546.1,2546.0,16.947]
[1748056269139,7.03624882,2546.1,2546.0,43.53]
[1748056269342,7.03624882,2546.1,2546.0,43.531]
[1748056269951,7.03624882,2546.1,2546.0,16.947]
[1748056270358,7.03624882,2546.1,2546.0,43.532]
[1748056271362,7.03624882,2546.1,2546.0,31.765]
[1748056271567,7.03624882,2546.1,2546.0,43.532]
[1748056272686,7.03624882,2546.1,2546.0,16.947]
[1748056272844,7.03624882,2546.1,2546.0,43.534]
[1748056273044,7.03624882,2546.1,2546.0,16.947]
[1748056273369,7.03624882,2546.1,2546.0,43.534]
[1748056274844,4.29407658,2546.1,2546.0,43.534]
[1748056275475,4.29407658,2546.1,2546.0,51.534]
[1748056276980,4.19407658,2546.1,2546.0,51.534]
[1748056277186,4.19407658,2546.1,2546.0,52.2858]
[1748056277763,3.8275755,2546.1,2546.0,52.2858]
[1748056278563,3.8275755,2546.1,2546.0,25.6988]
[1748056278798,3.8275755,2546.1,2546.0,52.2848]
[1748056279383,0.7957,2546.8,2546.1,8.0]
[1748056279584,3.92742125,2546.2,2546.1,8.0]
[1748056282380,3.92742125,2546.2,2546.1,34.612]
[1748056286134,3.92721086,2546.4,2546.2,0.7668]
[1748056286285,3.92726701,2546.3,2546.2,0.7668]
[1748056290706,3.92726701,2546.3,2546.2,35.3768]
[1748056292224,3.97642535,2546.9,2546.3,8.0]
[1748056292441,3.92709844,2546.5,2546.3,8.0]
[1748056292644,3.92726701,2546.3,2546.2,0.7668]
[1748056292783,3.92726701,2546.3,2546.2,8.7668]
[1748056292989,3.92726701,2546.3,2546.2,35.3748]
[1748056293291,3.92716315,2546.4,2546.3,8.0]
[1748056293491,3.92726701,2546.3,2546.2,0.7668]
[1748056293700,3.92726701,2546.3,2546.2,35.3748]
[1748056293903,3.92726701,2546.3,2546.2,23.6098]
[1748056294245,3.92726701,2546.3,2546.2,35.3748]
[1748056296117,3.92718284,2546.4,2546.3,8.0]
[1748056296753,3.92726701,2546.3,2546.2,0.7668]
[1748056296915,3.92726701,2546.3,2546.2,35.3748]
[1748056297114,3.92726701,2546.3,2546.2,8.7668]
[1748056297329,3.92726701,2546.3,2546.2,35.3748]
[1748056298359,3.9270202,2546.5,2546.2,35.3748]
[1748056298577,3.97638379,2546.9,2546.3,8.03926813]
[1748056298863,3.92683481,2546.6,2546.4,0.8287]
[1748056299060,3.92664768,2546.8,2546.4,0.8287]
[1748056299223,3.92689514,2546.6,2546.4,0.8287]
[1748056299421,0.05,2546.9,2546.4,0.8287]
[1748056299757,3.92668921,2546.7,2546.4,0.8287]
[1748056300055,3.92668921,2546.7,2546.6,8.0]
[1748056300258,3.92680436,2546.6,2546.5,0.8]
[1748056300561,3.92680436,2546.6,2546.5,35.406]
[1748056300978,3.92674356,2546.7,2546.6,8.0]
[1748056305385,6.72734643,2547.0,2546.7,0.8287]
[1748056305580,3.92649599,2546.8,2546.7,0.8287]
[1748056306279,3.92641815,2546.9,2546.7,0.8287]
[1748056307163,2.80106697,2547.0,2546.7,0.8287]
[1748056307363,3.92642304,2546.9,2546.7,0.8287]
[1748056307990,6.72727887,2547.0,2546.7,0.8287]
[1748056308174,0.05,2547.4,2546.9,0.8287]
[1748056308373,0.05,2547.4,2547.1,0.8287]
[1748056308374,3.92583904,2547.3,2547.1,0.8287]
[1748056308699,3.9257362,2547.3,2547.1,0.8287]
[1748056309070,0.05,2547.4,2547.1,0.8287]
[1748056309472,3.92587939,2547.2,2547.1,0.8287]
[1748056309672,3.92587939,2547.2,2547.1,35.4317]
[1748056309875,3.92587939,2547.2,2547.1,8.8287]
[1748056310399,3.92587939,2547.2,2547.1,35.4317]
[1748056311387,3.92587939,2547.2,2547.1,34.602]
[1748056311577,3.92680436,2546.6,2546.5,1.5783]
[1748056311785,3.92672047,2546.7,2546.6,8.0]
[1748056313403,3.92639254,2546.9,2546.6,8.0]
[1748056313404,3.92646635,2546.9,2546.6,8.0]
[1748056313980,3.92650218,2546.8,2546.7,0.8072]
[1748056315327,3.92695857,2546.5,2546.3,11.762]
[1748056315532,3.92819263,2545.7,2545.6,0.46959174]
[1748056315669,3.92819263,2545.7,2545.6,44.27859174]
[1748056316002,3.92819263,2545.7,2545.6,52.27859174]
[1748056317039,3.92799282,2545.9,2545.7,8.0]
[1748056317238,3.92742125,2546.2,2545.6,18.21379174]
[1748056317528,3.92742125,2546.2,2545.6,25.7442]
[1748056317529,3.92819263,2545.7,2545.6,25.7442]
[1748056317805,4.29344291,2546.2,2545.7,8.0]
[1748056318121,3.9277462,2546.0,2545.7,8.0]
[1748056318423,3.9280352,2545.9,2545.8,34.875]
[1748056320225,3.9280352,2545.9,2545.8,34.876]
[1748056325095,3.92780368,2546.0,2545.9,8.0]
[1748056325302,3.92766754,2546.1,2545.9,8.0]
[1748056325607,3.92764237,2546.1,2545.9,8.0]
[1748056327713,3.92772977,2546.0,2545.9,8.0]
[1748056328208,3.92796812,2545.9,2545.7,8.0]
[1748056328415,3.92772977,2546.0,2545.9,8.0]
[1748056330228,3.92765789,2546.1,2545.9,8.0]
[1748056330520,3.92720025,2546.4,2545.9,8.0]
[1748056330825,3.92742317,2546.2,2546.0,0.7589]
[1748056331183,3.92735117,2546.3,2546.0,0.7589]
[1748056331591,3.92720025,2546.4,2546.0,0.7589]
[1748056331785,3.9273432,2546.3,2546.0,0.7589]
[1748056332829,3.92744365,2546.2,2546.0,0.7589]
[1748056333001,4.71535683,2546.7,2545.9,8.0]
[1748056333002,3.92772977,2546.0,2545.9,8.0]
[1748056333327,3.92765705,2546.1,2545.8,8.0]
[1748056333532,3.92765705,2546.1,2546.0,8.0]
[1748056333992,3.92777401,2546.0,2545.8,8.0]
[1748056334328,3.92777401,2546.0,2545.9,34.879]
[1748056335229,3.92765985,2546.1,2546.0,8.0]
[1748056336932,3.92750717,2546.2,2546.0,8.0]
[1748056337653,0.815,2546.7,2546.1,0.8162]
[1748056337859,3.92719627,2546.4,2546.1,0.8162]
[1748056338654,3.92728904,2546.3,2546.1,0.8162]
[1748056339513,3.92742125,2546.2,2546.1,0.8162]
[1748056339714,3.92742125,2546.2,2546.0,8.0]
[1748056340625,3.9275755,2546.1,2546.0,8.0]
[1748056341270,3.92750494,2546.2,2546.0,8.0]
[1748056341933,0.815,2546.7,2546.0,8.0]
[1748056342131,3.927281,2546.3,2546.0,8.0]
[1748056342673,3.927281,2546.3,2546.0,9.14367183]
[1748056342848,3.92742634,2546.2,2546.0,8.0]
[1748056343256,3.92732358,2546.3,2546.0,8.0]
[1748056343572,3.92742614,2546.2,2546.0,8.0]
[1748056344729,3.92714337,2546.4,2546.0,8.0]
[1748056344950,3.92738689,2546.3,2546.0,8.0]
[1748056345171,3.92743232,2546.2,2546.0,8.0]
[1748056346060,3.9275755,2546.1,2546.0,8.0]
[1748056346366,3.9275755,2546.1,2546.0,19.765]
[1748056346565,3.9275755,2546.1,2546.0,8.0]
[1748056346758,3.9275755,2546.1,2546.0,34.8]
[1748056347583,3.92750751,2546.2,2546.0,34.8]
[1748056347894,3.9275755,2546.1,2546.0,34.8]
[1748056350476,3.9275755,2546.1,2546.0,51.742]
[1748056350975,3.92750433,2546.2,2546.0,51.742]
[1748056351208,3.92734287,2546.3,2546.0,51.742]
[1748056351507,3.9275755,2546.1,2546.0,51.742]
[1748056351802,3.92749428,2546.2,2546.0,24.942]
[1748056351957,3.92749428,2546.2,2546.0,51.742]
[1748056353292,3.9275755,2546.1,2546.0,51.742]
[1748056353797,3.9275755,2546.1,2546.0,39.977]
[1748056354001,3.9275755,2546.1,2546.0,51.742]
[1748056355899,3.9275755,2546.1,2546.0,24.942]
[1748056356207,4.78898673,2546.1,2546.0,43.742]
[1748056356412,4.78898673,2546.1,2546.0,51.742]
[1748056356614,3.9275755,2546.1,2546.0,51.742]
[1748056356816,4.29479842,2546.1,2546.0,51.742]
[1748056359012,4.29479842,2546.1,2546.0,24.942]
[1748056359193,5.11269842,2546.1,2546.0,51.742]
[1748056362076,5.11269842,2546.1,2546.0,39.977]
[1748056362278,5.11269842,2546.1,2546.0,51.742]
[1748056362813,5.11269842,2546.1,2546.0,51.743]
[1748056364108,4.29479842,2546.1,2546.0,51.743]
[1748056364291,4.29479842,2546.1,2546.0,39.977]
[1748056364499,5.19540194,2546.1,2546.0,51.743]
[1748056364701,5.97920194,2546.1,2546.0,24.942]
[1748056364916,5.97920194,2546.1,2546.0,51.744]
[1748056365722,5.97920194,2546.1,2546.0,39.978]
[1748056365886,5.97920194,2546.1,2546.0,51.744]
[1748056366844,5.97920194,2546.1,2546.0,51.645]
[1748056367421,5.97920194,2546.1,2546.0,24.843]
[1748056367747,5.97920194,2546.1,2546.0,43.745]
[1748056369904,5.97920194,2546.1,2546.0,43.746]
[1748056370539,4.29479842,2546.1,2546.0,51.746]
[1748056371765,3.9275755,2546.1,2546.0,51.746]
[1748056373265,3.9275755,2546.1,2546.0,24.943]
[1748056373433,3.9275755,2546.1,2546.0,51.746]
[1748056373829,4.7247755,2546.1,2546.0,31.98]
[1748056374083,5.51027673,2546.1,2546.0,43.746]
[1748056375270,0.36673471,2546.1,2546.0,51.746]
[1748056375568,4.29431021,2546.1,2546.0,51.746]
[1748056376244,3.9275755,2546.1,2546.0,51.746]
[1748056379775,3.9275755,2546.1,2546.0,24.943]
[1748056379981,3.9275755,2546.1,2546.0,51.666]
[1748056382006,4.29447949,2546.1,2546.0,51.666]
[1748056382306,4.29447949,2546.1,2546.0,43.666]
[1748056382473,4.29447949,2546.1,2546.0,51.666]
[1748056385505,4.29447949,2546.1,2546.0,24.943]
[1748056385806,5.91387166,2546.1,2546.0,51.666]
[1748056386005,5.91387166,2546.1,2546.0,39.9]
[1748056386191,5.91387166,2546.1,2546.0,51.666]
[1748056388342,5.09167949,2546.1,2546.0,51.666]
[1748056390422,5.09167949,2546.1,2546.0,24.943]
[1748056390618,5.09167949,2546.1,2546.0,43.667]
[1748056390619,5.64167949,2546.1,2546.0,43.667]
[1748056392990,5.64167949,2546.1,2546.0,43.668]
[1748056393406,6.59859166,2546.1,2546.0,43.668]
[1748056393703,6.04859166,2546.1,2546.0,43.668]
[1748056394022,4.29447949,2546.1,2546.0,51.668]
[1748056397438,4.29447949,2546.1,2546.0,51.669]
[1748056398933,4.29447949,2546.1,2546.0,52.4521]
[1748056399232,3.92749067,2546.2,2546.1,8.0]
[1748056401408,3.92749067,2546.2,2546.1,34.725]
[1748056402118,4.29434026,2546.2,2546.1,34.725]
[1748056404139,4.29434026,2546.2,2546.1,22.958]
[1748056404340,4.29434026,2546.2,2546.1,34.724]
[1748056404341,5.94190099,2546.2,2546.1,34.724]
[1748056405851,4.29434026,2546.2,2546.1,34.724]
[1748056407157,4.29434026,2546.2,2546.1,35.4751]
[1748056407359,4.29434026,2546.2,2546.1,34.724]
[1748056409359,4.29434026,2546.2,2546.1,35.5067]
[1748056409860,3.92749067,2546.2,2546.1,35.5067]
[1748056411363,3.92733986,2546.3,2546.1,35.5067]
[1748056413774,3.92726281,2546.4,2546.1,35.5067]
[1748056414076,3.92728889,2546.3,2546.1,35.5067]
[1748056416382,3.92742125,2546.2,2546.1,23.7407]
[1748056416573,3.92742125,2546.2,2546.1,8.0]
[1748056416775,3.92742125,2546.2,2546.1,34.663]
[1748056417375,3.92731443,2546.3,2546.1,34.663]
[1748056417985,3.92731443,2546.3,2546.2,0.8143]
[1748056423758,3.92742125,2546.2,2546.1,22.898]
[1748056423958,3.92742125,2546.2,2546.1,34.663]
[1748056424790,3.92742125,2546.2,2546.1,8.0]
[1748056424969,3.92742125,2546.2,2546.1,34.663]
[1748056426788,3.92665017,2546.7,2546.1,34.663]
[1748056426954,3.92742125,2546.2,2546.1,34.663]
[1748056428787,3.92742125,2546.2,2546.1,8.0]
[1748056428993,3.92742125,2546.2,2546.1,34.662]
[1748056429691,3.92742125,2546.2,2546.1,8.0]
[1748056429895,3.92742125,2546.2,2546.1,34.662]
[1748056430995,3.92742125,2546.2,2546.1,8.0]
[1748056431293,3.92742125,2546.2,2546.1,34.662]
[1748056431793,3.92742125,2546.2,2546.1,8.0]
[1748056431960,3.92734602,2546.3,2546.1,34.662]
[1748056432695,3.92742125,2546.2,2546.1,34.662]
[1748056432995,3.92735228,2546.3,2546.1,34.662]
[1748056434198,0.7715,2546.6,2546.1,34.662]
[1748056434395,3.9268128,2546.6,2546.2,0.03926947]
[1748056434604,3.92698435,2546.5,2546.3,0.7778]
[1748056434759,0.7715,2546.9,2546.1,8.7778]
[1748056434760,3.92735967,2546.3,2546.1,8.7778]
[1748056434966,3.92717975,2546.4,2546.3,8.0]
[1748056439303,3.92717975,2546.4,2546.1,8.7778]
[1748056439501,3.92717975,2546.4,2546.3,8.0]
[1748056439679,3.92742125,2546.2,2546.1,8.0]
[1748056439878,0.55,2547.3,2546.1,34.603]
[1748056440206,3.92658883,2546.8,2546.3,0.7914]
[1748056440407,0.7832,2547.3,2546.5,0.7914]
[1748056440594,3.92628476,2547.0,2546.7,8.0]
[1748056440909,3.92628476,2547.0,2546.9,8.0]
[1748056441077,4.29349494,2547.0,2546.9,8.0]
[1748056441723,0.36721018,2547.0,2546.9,8.7914]
[1748056442339,3.92612994,2547.1,2546.9,8.7914]
[1748056442845,3.92612994,2547.1,2546.9,0.7914]
[1748056442995,3.92612994,2547.1,2547.0,34.603]
[1748056443417,3.92599018,2547.2,2547.1,8.0]
[1748056444089,3.92579959,2547.3,2547.1,8.0]
[1748056444285,3.97558216,2547.4,2547.1,8.0]
[1748056444501,3.9257365,2547.3,2547.1,8.0]
[1748056444920,3.97562955,2547.4,2547.1,8.0]
[1748056445097,3.92587939,2547.2,2547.1,8.0]
[1748056445303,3.92587939,2547.2,2547.1,24.94]
[1748056446806,3.97561496,2547.4,2547.1,51.538]
[1748056447020,3.92582646,2547.3,2547.1,51.538]
[1748056448058,3.92587939,2547.2,2547.1,51.538]
[1748056451252,3.92581896,2547.3,2547.1,52.3263]
[1748056451550,3.92587939,2547.2,2547.1,52.3263]
[1748056451755,3.92587939,2547.2,2547.1,39.776]
[1748056451922,3.92587939,2547.2,2547.1,51.538]
[1748056452637,3.97565937,2547.4,2547.1,51.538]
[1748056452842,3.92573365,2547.3,2547.1,51.538]
[1748056454220,3.92587939,2547.2,2547.1,51.538]
[1748056455750,3.92575963,2547.3,2547.1,51.538]
[1748056456718,3.97559018,2547.4,2547.1,51.538]
[1748056457227,3.97559018,2547.4,2547.1,24.94]
[1748056457228,3.92587939,2547.2,2547.1,24.94]
[1748056457423,3.92587939,2547.2,2547.1,39.774]
[1748056457649,4.79646185,2547.2,2547.1,43.535]